bitfinex-derivatives/quotes_SOLF0:USTF0_20250207
["timestamp","ask_amount","ask_price","bid_price","bid_amount"]
[1738966027774,0.03590668,188.57,188.53,0.03794981]
[1738966028077,60.79497279,188.68,188.55,35.57065093]
[1738966028378,5.2989,188.7,188.59,35.57065093]
[1738966028676,3.2258,188.72,188.65,5.3]
[1738966028876,3.2258,188.72,188.62,35.57065093]
[1738966029078,5.2984,188.71,188.62,35.57065093]
[1738966029274,0.03447776,188.69,188.65,0.03903176]
[1738966029777,85.8240126,188.75,188.65,35.60968269]
[1738966029979,85.8240126,188.75,188.68,35.57065093]
[1738966030177,85.8240126,188.75,188.7,5.2986]
[1738966030572,85.8240126,188.75,188.66,1.5446]
[1738966030775,62.68561677,188.74,188.68,5.2991]
[1738966030971,57.38801677,188.74,188.58,35.57065093]
[1738966031170,35.57065093,188.69,188.56,1.5446]
[1738966031377,3.1166,188.68,188.56,1.5446]
[1738966031670,3.1166,188.68,188.51,35.57065093]
[1738966031875,3.1166,188.68,188.57,35.57065093]
[1738966032178,37.18425093,188.73,188.57,35.57065093]
[1738966032179,1.6136,188.73,188.63,35.57065093]
[1738966032378,3.1962,188.79,188.66,35.57065093]
[1738966032577,35.57065093,188.85,188.69,35.57065093]
[1738966032781,35.57065093,188.85,188.79,5.2961]
[1738966032782,3.1962,188.84,188.79,5.2961]
[1738966032984,1.6136,188.89,188.75,35.57065093]
[1738966033179,4.8098,188.89,188.75,35.57065093]
[1738966033380,35.57065093,188.88,188.72,37.20945093]
[1738966033883,0.03554563,188.82,188.78,5.33682921]
[1738966034082,0.03554563,188.82,188.78,0.04052921]
[1738966034273,0.03554563,188.82,188.8,5.2957]
[1738966034677,0.03554563,188.82,188.78,35.61118014]
[1738966034881,62.68101677,188.9,188.84,5.2945]
[1738966035079,57.38801677,188.9,188.81,35.57065093]
[1738966035681,1.6299,188.93,188.81,35.57065093]
[1738966036183,0.03465681,188.89,188.85,0.03860659]
[1738966036981,0.03465681,188.89,188.87,5.2938]
[1738966037676,0.03465681,188.89,188.85,5.33280659]
[1738966037874,0.03465681,188.89,188.85,0.03860659]
[1738966038982,4.6788,188.99,188.87,35.57065093]
[1738966039178,4.6788,188.99,188.9,35.57065093]
[1738966039783,5.2916,188.95,188.9,35.57065093]
[1738966040282,5.2913,188.97,188.9,35.57065093]
[1738966040483,0.03967876,188.94,188.91,0.04050724]
[1738966040790,5.2902,189.0,188.94,5.2916]
[1738966041082,5.2902,189.0,188.93,35.57065093]
[1738966041287,40.44895093,189.05,188.91,5.2927]
[1738966041884,0.03798464,189.0,188.96,5.32538777]
[1738966042089,0.03798464,189.0,188.96,35.6047387]
[1738966042390,5.2887,189.06,188.99,35.57065093]
[1738966042580,3.1947,189.12,188.99,35.57065093]
[1738966043085,3.1947,189.12,188.97,6.956]
[1738966043481,5.2892,189.04,189.03,0.03390439]
[1738966044384,0.03589871,189.06,188.87,1.6652]
[1738966044581,35.57065093,189.05,188.87,1.6652]
[1738966045087,191.0,189.11,188.98,5.2907]
[1738966045088,226.57065093,189.11,188.98,5.2907]
[1738966045386,226.57065093,189.11,188.96,35.57065093]
[1738966045791,0.03975961,189.06,189.03,0.03576416]
[1738966045993,5.2891,189.04,189.03,0.03576416]
[1738966046388,0.03975961,189.06,188.92,1.6511]
[1738966046595,5.2901,189.01,188.95,5.2916]
[1738966046796,35.57065093,189.08,188.92,1.6511]
[1738966046991,5.2911,188.97,188.92,6.9435]
[1738966047186,35.57065093,189.02,188.85,35.57065093]
[1738966047490,1.5381,189.01,188.85,35.57065093]
[1738966047690,5.32654448,188.96,188.93,0.03764192]
[1738966047895,0.03504448,188.96,188.93,0.03764192]
[1738966050299,226.57065093,189.14,188.94,35.57065093]
[1738966050500,1.6095,189.12,188.98,35.57065093]
[1738966051299,35.57065093,189.11,188.95,35.57065093]
[1738966051498,0.03774446,189.07,189.03,0.03611749]
[1738966052192,5.2893,189.04,189.03,0.03611749]
[1738966052502,35.57065093,189.05,188.88,38.79835093]
[1738966052905,5.2916,188.95,188.9,5.2929]
[1738966053701,0.03995946,188.94,188.91,0.03780542]
[1738966053901,5.2924,188.92,188.91,0.03780542]
[1738966054497,0.03995946,188.94,188.86,104.86]
[1738966054697,0.03995946,188.94,188.88,35.57065093]
[1738966054898,0.03995946,188.94,188.93,5.2922]
[1738966055304,35.57065093,189.12,188.91,71.14130186]
[1738966055503,35.57065093,189.12,188.97,35.57065093]
[1738966055504,1.5201,189.08,188.97,35.57065093]
[1738966055806,1.5201,189.08,189.0,35.57065093]
[1738966056003,35.57065093,189.15,189.0,35.57065093]
[1738966056204,1.5201,189.14,189.0,35.57065093]
[1738966056408,1.5201,189.14,189.03,35.57065093]
[1738966056605,0.04056854,189.09,189.05,0.03647124]
[1738966056807,0.04056854,189.09,189.06,5.2885]
[1738966057007,0.04056854,189.09,189.05,0.03647124]
[1738966057305,0.04056854,189.09,189.05,5.32527124]
[1738966057605,0.04056854,189.09,189.05,0.03647124]
[1738966057806,0.04056854,189.09,189.05,5.32517124]
[1738966058010,0.04056854,189.09,189.05,0.03647124]
[1738966060505,5.2882,189.07,189.05,0.03647124]
[1738966060706,0.04056854,189.09,189.05,0.03647124]
[1738966060903,0.04056854,189.09,189.07,5.2881]
[1738966061108,0.04056854,189.09,189.06,35.57065093]
[1738966061309,1.75992,189.19,189.06,35.57065093]
[1738966061508,5.2862,189.15,189.1,35.57065093]
[1738966061709,1.75992,189.19,189.1,35.57065093]
[1738966062310,5.2862,189.15,189.1,35.57065093]
[1738966062611,5.2862,189.15,189.13,0.03748221]
[1738966062910,0.04049676,189.16,189.13,0.03748221]
[1738966063110,5.2863,189.14,189.13,0.03748221]
[1738966064002,0.04049676,189.16,189.13,0.03748221]
[1738966064200,0.04049676,189.16,189.13,35.60813314]
[1738966064617,0.04049676,189.16,189.15,5.286]
[1738966066118,0.04049676,189.16,189.13,35.60813314]
[1738966066320,0.04049676,189.16,189.14,5.2863]
[1738966066516,0.04049676,189.16,189.13,35.60813314]
[1738966066721,0.18802,189.19,189.13,35.60813314]
[1738966067020,0.18802,189.19,189.17,35.57065093]
[1738966068223,0.18802,189.19,189.14,35.57065093]
[1738966069222,0.18802,189.19,189.17,35.57065093]
[1738966069721,0.18802,189.19,189.17,40.85585093]
[1738966070020,0.03825957,189.2,189.17,35.57065093]
[1738966070220,1.5285,189.32,189.21,35.57065093]
[1738966070418,1.5285,189.32,189.18,35.57065093]
[1738966071225,1.5285,189.32,189.14,1.6102]
[1738966071226,37.22055093,189.3,189.15,35.57065093]
[1738966071426,0.03896145,189.26,189.22,0.0355994]
[1738966071626,5.2838,189.23,189.22,0.0355994]
[1738966071827,0.03896145,189.26,189.12,35.57065093]
[1738966072128,5.2833,189.25,189.15,5.2858]
[1738966072323,37.22055093,189.3,189.15,5.2858]
[1738966072518,35.57065093,189.27,189.12,35.57065093]
[1738966072721,5.2853,189.18,189.13,5.2863]
[1738966072925,5.2853,189.18,189.12,35.57065093]
[1738966073125,0.03736069,189.17,189.14,0.03340328]
[1738966073430,1.6053,189.26,189.09,35.57065093]
[1738966073725,0.03811437,189.17,189.14,0.04011184]
[1738966073931,5.2861,189.15,189.14,0.04011184]
[1738966074231,0.03729964,189.16,189.13,0.03790143]
[1738966074430,5.2863,189.14,189.13,0.03790143]
[1738966074730,0.03700649,189.15,189.12,0.034195]
[1738966075127,5.2866,189.13,189.12,0.034195]
[1738966075434,0.03700649,189.15,189.12,35.60484593]
[1738966076531,0.03700649,189.15,189.12,40.89154593]
[1738966076726,0.03700649,189.15,189.12,35.60484593]
[1738966076927,0.03700649,189.15,189.14,5.2863]
[1738966076928,6.49e-06,189.15,189.14,5.2863]
[1738966077127,5.2837,189.24,189.12,35.60484593]
[1738966077329,3.183,189.25,189.17,35.57065093]
[1738966077829,3.183,189.25,189.19,5.2846]
[1738966078026,1.6337,189.25,189.19,5.2846]
[1738966078330,0.03746718,189.24,189.2,0.03405248]
[1738966078727,5.2839,189.23,189.2,0.03405248]
[1738966079227,0.03746718,189.24,189.2,0.03405248]
[1738966081228,5.284,189.23,189.2,0.03405248]
[1738966081428,0.03746718,189.24,189.2,0.03405248]
[1738966081628,0.03746718,189.24,189.2,35.60470341]
[1738966082128,0.03746718,189.24,189.23,35.57065093]
[1738966082532,0.03746718,189.24,189.23,40.85445093]
[1738966083332,0.03746718,189.24,189.22,5.284]
[1738966083529,0.03746718,189.24,189.2,0.03405248]
[1738966083829,191.0,189.41,189.33,5.281]
[1738966084227,1.5467,189.43,189.34,35.57065093]
[1738966084429,1.5467,189.43,189.37,5.2798]
[1738966084732,1.5467,189.43,189.34,35.57065093]
[1738966084934,0.02125029,189.42,189.38,0.0352553]
[1738966087931,5.2793,189.39,189.38,0.0352553]
[1738966088134,1.5466,189.41,189.28,104.64]
[1738966088335,5.281,189.33,189.28,109.9224]
[1738966088727,1.5466,189.41,189.28,109.9224]
[1738966089031,1.5466,189.41,189.28,104.64]
[1738966089232,0.04042686,189.36,189.33,0.03544998]
[1738966089535,5.2807,189.35,189.33,0.03544998]
[1738966090536,5.2807,189.34,189.33,0.03544998]
[1738966091337,0.04042686,189.36,189.28,104.64]
[1738966091534,1.6018,189.35,189.28,104.64]
[1738966091937,5.2821,189.29,189.28,104.64]
[1738966092132,191.0,189.34,189.21,35.57065093]
[1738966092340,5.2815,189.32,189.27,0.0358894]
[1738966092640,0.03822581,189.3,189.27,0.0358894]
[1738966092831,0.03822581,189.3,189.28,35.57065093]
[1738966093028,0.03822581,189.3,189.28,40.85295093]
[1738966093337,0.03822581,189.3,189.28,35.57065093]
[1738966093737,0.03822581,189.3,189.29,5.2821]
[1738966093938,191.0,189.41,189.28,35.57065093]
[1738966094138,192.5279,189.41,189.28,35.57065093]
[1738966094336,192.5279,189.41,189.31,35.57065093]
[1738966094640,192.5279,189.41,189.27,35.57065093]
[1738966095034,0.03703523,189.36,189.32,0.03332878]
[1738966095831,5.2805,189.35,189.32,0.03332878]
[1738966096634,0.03703523,189.36,189.32,0.03332878]
[1738966097039,0.03703523,189.36,189.33,35.57065093]
[1738966097235,0.03703523,189.36,189.34,5.2807]
[1738966097630,0.03703523,189.36,189.35,5.2804]
[1738966098040,0.03703523,189.36,189.33,35.57065093]
[1738966098941,5.278,189.44,189.39,5.2792]
[1738966099240,5.278,189.44,189.39,35.57065093]
[1738966099436,148.29328832,189.53,189.42,5.2784]
[1738966099641,148.29328832,189.53,189.42,35.57065093]
[1738966099642,3.285,189.52,189.42,35.57065093]
[1738966100142,5.2767,189.49,189.45,0.03514217]
[1738966100545,5.2773,189.46,189.45,0.03514217]
[1738966101938,5.2786,189.42,189.37,5.2798]
[1738966102241,3.285,189.52,189.36,35.57065093]
[1738966102441,3.285,189.52,189.39,35.57065093]
[1738966103145,0.03829115,189.47,189.44,0.04041417]
[1738966103940,5.2776,189.45,189.44,0.04041417]
[1738966104140,5.2776,189.45,189.44,1.417e-05]
[1738966105143,40.84825093,189.45,189.44,1.417e-05]
[1738966105346,35.57065093,189.45,189.27,35.57065093]
[1738966105544,35.57065093,189.41,189.27,35.57065093]
[1738966105740,3.3554,189.4,189.27,35.57065093]
[1738966105942,191.0,189.39,189.25,7.31405073]
[1738966106239,191.0,189.38,189.25,7.31405073]
[1738966106439,5.281,189.33,189.3,0.03396507]
[1738966106637,0.03690371,189.34,189.3,0.03396507]
[1738966107343,0.03690371,189.34,189.33,35.57065093]
[1738966107744,0.03690371,189.34,189.33,40.85165093]
[1738966108347,0.03690371,189.34,189.3,35.604616]
[1738966108748,0.03690371,189.34,189.3,0.03396507]
[1738966109640,0.03690371,189.34,189.31,5.2815]
[1738966109838,0.03690371,189.34,189.33,35.57065093]
[1738966110247,5.2788,189.41,189.33,35.57065093]
[1738966110944,4.8826,189.47,189.36,35.57065093]
[1738966111146,4.8826,189.47,189.39,35.57065093]
[1738966111544,0.03360616,189.45,189.41,0.03360478]
[1738966114545,0.03360616,189.45,189.41,5.31220478]
[1738966115346,0.03360616,189.45,189.42,5.2784]
[1738966115546,0.03360616,189.45,189.41,0.03360478]
[1738966116446,0.03360616,189.45,189.31,7.31405073]
[1738966116754,21.68879285,189.45,189.31,7.31405073]
[1738966116952,5.2804,189.36,189.31,7.31405073]
[1738966117252,1.672,189.44,189.31,7.31405073]
[1738966117453,5.281,189.34,189.31,7.31405073]
[1738966117952,5.281,189.34,189.31,7.35458715]
[1738966118152,5.2812,189.32,189.31,0.04053642]
[1738966118451,0.03478449,189.34,189.22,21.68879285]
[1738966118653,1.6693,189.33,189.21,28.87484075]
[1738966118854,5.2826,189.28,189.21,28.87484075]
[1738966119552,0.0385006,189.26,189.23,0.0405263]
[1738966120661,0.0385006,189.26,189.23,5.3242263]
[1738966120857,0.0385006,189.26,189.23,0.0405263]
[1738966121256,0.0385006,189.26,189.25,5.2832]
[1738966121454,195.64,189.35,189.25,5.2832]
[1738966121455,1.6497,189.38,189.25,35.27563933]
[1738966121658,1.5788,189.39,189.32,35.27563933]
[1738966122161,1.6584,189.47,189.29,35.27563933]
[1738966122162,1.6584,189.47,189.35,35.27563933]
[1738966122458,5.2783,189.43,189.37,5.2798]
[1738966122656,0.03579205,189.43,189.39,0.03540829]
[1738966123052,5.279,189.4,189.39,0.03540829]
[1738966123259,0.03579205,189.43,189.39,0.03540829]
[1738966124358,5.279,189.4,189.39,0.03540829]
[1738966125560,0.03579205,189.43,189.39,0.03540829]
[1738966126866,5.31399205,189.43,189.39,0.03540829]
[1738966128266,5.2789,189.41,189.39,0.03540829]
[1738966128661,0.03579205,189.43,189.39,0.03540829]
[1738966128861,0.03579205,189.43,189.42,5.2785]
[1738966129362,191.0,189.62,189.41,35.27563933]
[1738966129559,4.7845,189.61,189.51,35.27563933]
[1738966130558,0.03987384,189.58,189.54,0.03335438]
[1738966135267,5.2746,189.56,189.54,0.03335438]
[1738966135663,0.03987384,189.58,189.54,0.03335438]
[1738966135862,5.2744,189.57,189.54,0.03335438]
[1738966136267,0.03987384,189.58,189.54,0.03335438]
[1738966137871,35.27563933,189.75,189.57,35.27563933]
[1738966138267,5.2729,189.63,189.56,5.2745]
[1738966138468,5.2729,189.63,189.54,35.27563933]
[1738966138869,5.2729,189.63,189.57,5.30930498]
[1738966139476,35.27563933,189.72,189.57,0.03530498]
[1738966139666,35.27563933,189.75,189.6,35.27563933]
[1738966139865,226.27563933,189.78,189.6,35.27563933]
[1738966140072,5.2712,189.68,189.66,0.03649305]
[1738966140476,5.2712,189.68,189.65,0.03648023]
[1738966140668,35.27563933,189.75,189.65,0.03648023]
[1738966140868,35.27563933,189.72,189.57,35.27563933]
[1738966141275,5.2726,189.64,189.58,5.2737]
[1738966141775,35.27563933,189.72,189.57,35.27563933]
[1738966141971,35.27563933,189.66,189.51,35.27563933]
[1738966142172,4.7049,189.65,189.48,36.93003933]
[1738966142380,5.2737,189.59,189.57,0.03802757]
[1738966142673,0.03860895,189.6,189.57,0.03802757]
[1738966144972,0.03860895,189.6,189.59,5.2737]
[1738966145176,0.03860895,189.6,189.57,0.03802757]
[1738966145776,0.03860895,189.6,189.58,5.274]
[1738966145974,0.03860895,189.6,189.57,0.03802757]
[1738966146475,0.03860895,189.6,189.59,5.2737]
[1738966146677,195.748,189.71,189.58,35.27563933]
[1738966146877,195.748,189.71,189.61,35.27563933]
[1738966147077,5.2712,189.68,189.63,5.2725]
[1738966147374,5.2712,189.68,189.61,35.27563933]
[1738966147980,195.748,189.71,189.63,0.036037]
[1738966149174,5.2715,189.67,189.63,0.036037]
[1738966149376,195.748,189.71,189.63,0.036037]
[1738966149774,5.2707,189.7,189.63,0.036037]
[1738966149977,191.0,189.8,189.66,35.27563933]
[1738966150275,1.5782,189.83,189.69,35.27563933]
[1738966150478,3.0955,189.83,189.72,35.27563933]
[1738966150681,3.0955,189.83,189.76,5.2689]
[1738966150879,5.2682,189.79,189.72,35.27563933]
[1738966151070,5.2682,189.79,189.78,0.03527348]
[1738966151475,5.2682,189.79,189.73,5.2698]
[1738966151780,5.2686,189.78,189.77,0.03656786]
[1738966151980,35.27563933,189.78,189.65,1.5593]
[1738966152480,35.27563933,189.81,189.65,1.5593]
[1738966152680,5.2696,189.74,189.67,5.2712]
[1738966152985,35.27563933,189.81,189.65,1.5593]
[1738966153284,5.2707,189.7,189.69,0.03547243]
[1738966153473,0.03513626,189.72,189.63,104.42]
[1738966153673,1.6482,189.74,189.63,104.42]
[1738966153872,5.2709,189.69,189.68,0.03583564]
[1738966156178,0.0338767,189.71,189.63,104.42]
[1738966156981,5.2723,189.64,189.63,104.42]
[1738966157979,0.03456093,189.65,189.62,0.03625405]
[1738966158279,0.03456093,189.65,189.54,5.275]
[1738966158881,0.03456093,189.65,189.52,35.27563933]
[1738966159186,5.2737,189.6,189.52,35.27563933]
[1738966159383,191.0,189.7,189.55,35.27563933]
[1738966159579,36.93903933,189.72,189.49,4.8404]
[1738966159580,0.03618103,189.58,189.54,35.31114177]
[1738966159786,5.2718,189.67,189.57,35.27563933]
[1738966160078,1.6634,189.72,189.6,35.27563933]
[1738966160281,1.6634,189.72,189.57,35.27563933]
[1738966160883,5.274,189.58,189.54,35.27563933]
[1738966161181,1.6634,189.72,189.54,35.27563933]
[1738966161182,191.0,189.68,189.63,0.03788893]
[1738966161384,191.0,189.68,189.61,35.27563933]
[1738966161579,191.0,189.68,189.64,0.03521403]
[1738966161780,0.03679288,189.67,189.64,0.03521403]
[1738966162182,5.30829288,189.67,189.64,0.03521403]
[1738966162386,0.03679288,189.67,189.64,0.03521403]
[1738966163281,0.03679288,189.67,189.64,35.31085336]
[1738966164687,0.03679288,189.67,189.64,0.03521403]
[1738966166286,5.272,189.66,189.64,0.03521403]
[1738966166483,0.03679288,189.67,189.64,0.03521403]
[1738966167084,5.272,189.66,189.64,0.03521403]
[1738966168379,0.03679288,189.67,189.64,0.03521403]
[1738966168685,5.2721,189.65,189.64,0.03521403]
[1738966169283,1.594,189.66,189.54,12.58895073]
[1738966169486,1.5633,189.65,189.54,7.31405073]
[1738966169887,5.274,189.59,189.54,12.58895073]
[1738966170191,1.5633,189.65,189.55,21.60785031]
[1738966170384,0.03537903,189.58,189.56,5.2746]
[1738966170584,5.273,189.62,189.55,21.64801201]
[1738966170784,0.03679004,189.59,189.55,21.64801201]
[1738966170985,0.03679004,189.59,189.56,5.2745]
[1738966171182,0.03679004,189.59,189.55,21.64801201]
[1738966171684,191.0,189.7,189.58,21.60785031]
[1738966171885,3.2601,189.69,189.55,21.60785031]
[1738966172082,3.2601,189.69,189.56,5.2745]
[1738966172284,3.2601,189.69,189.55,21.60785031]
[1738966172490,3.2601,189.69,189.52,23.24845031]
[1738966172791,3.2601,189.69,189.6,0.03595512]
[1738966172792,0.03638396,189.64,189.6,0.03595512]
[1738966172989,5.2732,189.61,189.6,0.03595512]
[1738966174189,0.03638396,189.64,189.6,0.03595512]
[1738966176387,5.2727,189.63,189.6,0.03595512]
[1738966176592,0.03638396,189.64,189.6,0.03595512]
[1738966177098,5.2732,189.61,189.6,0.03595512]
[1738966178491,5.2735,189.6,189.52,21.60785031]
[1738966178697,1.5318,189.63,189.52,21.60785031]
[1738966179293,1.5318,189.63,189.57,5.2742]
[1738966179490,0.03358029,189.62,189.58,0.03784946]
[1738966179687,191.0,189.66,189.55,21.60785031]
[1738966179893,0.03908449,189.62,189.58,0.03789237]
[1738966180495,5.2737,189.59,189.58,0.03789237]
[1738966181900,5.2751,189.55,189.49,30.56110104]
[1738966182089,191.0,189.62,189.49,30.56110104]
[1738966182496,191.0,189.62,189.51,5.2759]
[1738966183101,5.2749,189.55,189.51,5.2759]
[1738966183289,0.03826153,189.58,189.51,5.2759]
[1738966183495,5.2748,189.56,189.51,5.31427345]
[1738966184196,5.2749,189.55,189.51,5.31427345]
[1738966186201,0.03826153,189.58,189.51,5.31427345]
[1738966186401,85.8240126,189.75,189.64,5.2723]
[1738966186602,85.8240126,189.75,189.61,21.60785031]
[1738966186904,85.8240126,189.75,189.62,5.2726]
[1738966187102,1.5664,189.73,189.62,5.2726]
[1738966187495,5.31038162,189.69,189.66,0.03564618]
[1738966188300,0.03918162,189.69,189.66,0.03564618]
[1738966189002,0.03918162,189.69,189.68,5.2712]
[1738966191904,194.242,189.78,189.66,0.03564618]
[1738966192106,5.2692,189.76,189.7,5.2705]
[1738966192406,5.2692,189.76,189.69,21.60785031]
[1738966193203,0.03801335,189.74,189.71,0.03710341]
[1738966193908,0.03801335,189.74,189.72,5.27]
[1738966194403,0.03801335,189.74,189.73,5.2698]
[1738966196706,0.03801335,189.74,189.71,0.03710341]
[1738966196707,5.2699,189.73,189.71,0.03710341]
[1738966199211,0.03801335,189.74,189.71,0.03710341]
[1738966199808,0.03801335,189.74,189.71,21.64495372]
[1738966200013,3.2575,189.84,189.71,21.64495372]
[1738966200311,3.2575,189.84,189.76,21.60785031]
[1738966200706,3.2575,189.84,189.73,21.60785031]
[1738966201204,0.03924492,189.8,189.77,0.03814555]
[1738966202215,5.2682,189.79,189.77,0.03814555]
[1738966202912,0.03924492,189.8,189.77,0.03814555]
[1738966204416,5.30744492,189.8,189.77,0.03814555]
[1738966205014,5.2684,189.78,189.77,0.03814555]
[1738966205416,0.03924492,189.8,189.68,21.60785031]
[1738966205615,5.2698,189.74,189.69,5.2709]
[1738966205816,21.60785031,189.82,189.65,21.60785031]
[1738966206013,5.2698,189.74,189.68,26.87885031]
[1738966206217,21.60785031,189.82,189.65,21.60785031]
[1738966206614,5.2696,189.74,189.72,0.03623411]
[1738966208418,0.03950476,189.75,189.72,0.03623411]
[1738966208817,0.03950476,189.75,189.62,21.60785031]
[1738966209018,192.5431,189.78,189.62,21.60785031]
[1738966209218,21.60785031,189.75,189.58,57.34211235]
[1738966209420,1.5373,189.74,189.6,12.58735073]
[1738966209620,1.5373,189.74,189.6,7.31405073]
[1738966210017,0.04000497,189.69,189.65,0.04014948]
[1738966211029,0.04000497,189.69,189.55,50.48269106]
[1738966211218,191.0,189.68,189.55,28.87484075]
[1738966211419,21.60785031,189.66,189.55,28.87484075]
[1738966211614,192.6379,189.65,189.55,28.87484075]
[1738966211819,5.2746,189.56,189.55,28.87484075]
[1738966212116,191.0,189.62,189.55,28.87484075]
[1738966212313,0.03629812,189.57,189.55,28.87484075]
[1738966212917,0.03629812,189.57,189.54,0.03592275]
[1738966213423,5.2748,189.55,189.54,0.03592275]
[1738966213625,0.03629812,189.57,189.48,104.38]
[1738966213821,1.6428,189.56,189.48,104.38]
[1738966214117,1.6428,189.56,189.48,109.6568]
[1738966214722,5.2749,189.55,189.49,5.2765]
[1738966214920,5.2749,189.55,189.5,0.03432281]
[1738966215221,0.03629812,189.57,189.54,5.275]
[1738966215425,0.03629812,189.57,189.54,21.60785031]
[1738966215627,0.03629812,189.57,189.5,0.03432281]
[1738966216822,5.2749,189.55,189.5,0.03432281]
[1738966217022,0.03629812,189.57,189.5,0.03432281]
[1738966217220,0.03629812,189.57,189.52,21.60785031]
[1738966217820,0.03629812,189.57,189.43,1.5351]
[1738966217821,5.2774,189.46,189.4,5.2789]
[1738966218025,5.2774,189.46,189.35,28.87484075]
[1738966218223,21.60785031,189.55,189.35,28.87484075]
[1738966218429,21.60785031,189.51,189.35,28.87484075]
[1738966218627,21.60785031,189.51,189.33,30.42444075]
[1738966218628,3.2849,189.5,189.33,30.42444075]
[1738966219018,5.31205121,189.45,189.41,0.03348282]
[1738966219223,0.03435121,189.45,189.41,0.03348282]
[1738966219821,5.2782,189.43,189.41,0.03348282]
[1738966220025,0.03435121,189.45,189.33,28.87484075]
[1738966220325,5.281,189.33,189.31,72.539562]
[1738966221225,0.0339874,189.34,189.3,0.03920106]
[1738966221525,5.2815,189.31,189.3,0.03920106]
[1738966221919,5.2812,189.33,189.3,0.03920106]
[1738966222326,0.0339874,189.34,189.3,0.03920106]
[1738966223823,0.0339874,189.34,189.3,5.32080106]
[1738966224022,0.0339874,189.34,189.3,0.03920106]
[1738966224926,0.0339874,189.34,189.31,5.2814]
[1738966225127,0.0339874,189.34,189.3,0.03920106]
[1738966225833,5.3146874,189.34,189.3,0.03920106]
[1738966227029,0.0339874,189.34,189.3,0.03920106]
[1738966227227,0.0339874,189.34,189.32,5.2812]
[1738966228131,0.0339874,189.34,189.3,35.28338466]
[1738966228631,0.0339874,189.34,189.31,5.2815]
[1738966228834,0.0339874,189.34,189.3,35.28338466]
[1738966229632,0.0339874,189.34,189.3,0.03920106]
[1738966230032,0.0339874,189.34,189.3,5.32070106]
[1738966230627,5.2815,189.31,189.3,0.03920106]
[1738966230827,0.0339874,189.34,189.3,0.03920106]
[1738966231334,5.2815,189.31,189.3,1.06e-06]
[1738966232632,35.2441836,189.32,189.16,3.1965]
[1738966232937,35.2441836,189.29,189.16,3.1965]
[1738966233331,191.0,189.28,189.16,3.1965]
[1738966233633,35.2441836,189.26,189.15,104.44]
[1738966233826,35.2441836,189.26,189.2,0.03425019]
[1738966233827,0.03601933,189.24,189.2,0.03425019]
[1738966234033,5.2852,189.18,189.12,5.2868]
[1738966234230,191.0,189.24,189.11,1.6664]
[1738966234429,191.0,189.23,189.11,1.6664]
[1738966234828,5.2852,189.18,189.12,5.2868]
[1738966235038,0.0396897,189.19,189.15,0.03797345]
[1738966235435,5.2857,189.16,189.15,0.03797345]
[1738966236437,0.0396897,189.19,189.15,0.03797345]
[1738966237642,0.0396897,189.19,189.15,5.32367345]
[1738966237943,0.0396897,189.19,189.13,35.23751702]
[1738966238145,5.2854,189.18,189.12,5.2868]
[1738966238643,248.38801677,189.22,189.1,35.2441836]
[1738966238839,5.2844,189.21,189.16,5.2857]
[1738966239043,0.03390149,189.18,189.16,5.2857]
[1738966239543,0.03390149,189.18,189.13,35.2441836]
[1738966240045,0.03390149,189.18,189.14,3.1792]
[1738966240247,0.03390149,189.18,189.09,35.2441836]
[1738966240544,0.03390149,189.18,189.12,0.03405161]
[1738966241137,5.286,189.15,189.12,0.03405161]
[1738966241539,0.03390149,189.18,189.12,0.03405161]
[1738966241745,0.03390149,189.18,189.12,35.27823521]
[1738966241941,0.03390149,189.18,189.13,3.1792]
[1738966242245,0.03390149,189.18,189.16,5.2856]
[1738966242838,0.03390149,189.18,189.12,0.03405161]
[1738966243045,0.03390149,189.18,189.11,21.72689637]
[1738966243539,57.38801677,189.26,189.17,21.72689637]
[1738966243938,191.0,189.3,189.11,21.72689637]
[1738966243939,57.38801677,189.25,189.2,12.23281617]
[1738966244240,57.38801677,189.25,189.21,21.72689637]
[1738966244636,57.38801677,189.25,189.22,5.2838]
[1738966244845,57.42571037,189.25,189.22,5.2838]
[1738966245542,57.42571037,189.25,189.09,40.27543876]
[1738966245543,0.0376936,189.25,189.09,35.27543876]
[1738966245740,191.0,189.29,189.09,35.27543876]
[1738966245944,35.27543876,189.27,189.09,35.27543876]
[1738966246745,5.31882591,189.2,189.16,0.0404146]
[1738966246946,0.03402591,189.2,189.16,0.0404146]
[1738966248039,0.03402591,189.2,189.17,5.2854]
[1738966248244,0.03402591,189.2,189.16,0.0404146]